[Event "Live Chess"]
[Site "Chess.com"]
[Date "2023.05.21"]
[Round "-"]
[White "yeetpizza74"]
[Black "tpm07"]
[Result "0-1"]
[WhiteElo "498"]
[BlackElo "1927"]
[TimeControl "300"]
[EndTime "4:49:43 PDT"]
[Termination "tpm07 won by checkmate"]

1. e4 {[%clk 0:04:58]} 1... e5 {[%clk 0:04:59]} 2. Nf3 {[%clk 0:04:56.7]} 2...
Nc6 {[%clk 0:04:58.2]} 3. Bc4 {[%clk 0:04:55.6]} 3... Nf6 {[%clk 0:04:56.9]} 4.
Ng5 {[%clk 0:04:54.4]} 4... d5 {[%clk 0:04:55.6]} 5. exd5 {[%clk 0:04:52.8]}
5... Na5 {[%clk 0:04:55.2]} 6. Bb3 {[%clk 0:04:49.7]} 6... Nxb3 {[%clk
0:04:50.2]} 7. cxb3 {[%clk 0:04:48.4]} 7... Nxd5 {[%clk 0:04:49.3]} 8. Nc3
{[%clk 0:04:47.4]} 8... Nf4 {[%clk 0:04:44.7]} 9. b4 {[%clk 0:04:43.2]} 9...
Qxg5 {[%clk 0:04:40]} 10. d3 {[%clk 0:04:39.4]} 10... Qxg2 {[%clk 0:04:32.1]}
11. Rf1 {[%clk 0:04:33.7]} 11... Bf5 {[%clk 0:04:26.5]} 12. Bxf4 {[%clk
0:04:29.3]} 12... exf4 {[%clk 0:04:23.1]} 13. Ne4 {[%clk 0:03:46.3]} 13... Bxb4+
{[%clk 0:04:13.7]} 14. Nc3 {[%clk 0:03:41.9]} 14... O-O {[%clk 0:04:09.6]} 15.
a3 {[%clk 0:03:38.8]} 15... Bxc3+ {[%clk 0:03:59.4]} 16. bxc3 {[%clk 0:03:37.1]}
16... Bh3 {[%clk 0:03:55.6]} 17. Qe2 {[%clk 0:03:28.3]} 17... Rfe8 {[%clk
0:03:53.3]} 18. Qxe8+ {[%clk 0:03:20.9]} 18... Rxe8+ {[%clk 0:03:49.9]} 19. Kd2
{[%clk 0:03:13.6]} 19... Qf3 {[%clk 0:03:47.4]} 20. Rae1 {[%clk 0:03:10.1]}
20... Rxe1 {[%clk 0:03:44.8]} 21. Rxe1 {[%clk 0:03:08.9]} 21... g6 {[%clk
0:03:42.7]} 22. d4 {[%clk 0:03:05.3]} 22... Qxf2+ {[%clk 0:03:38.3]} 23. Re2
{[%clk 0:03:03.9]} 23... Qf1 {[%clk 0:03:32.4]} 24. Re1 {[%clk 0:03:02.3]} 24...
Qc4 {[%clk 0:03:30.4]} 25. Re4 {[%clk 0:02:58]} 25... f3 {[%clk 0:03:28.1]} 26.
Re3 {[%clk 0:02:54.8]} 26... f2 {[%clk 0:03:25.6]} 27. Rxh3 {[%clk 0:02:50.4]}
27... f1=Q {[%clk 0:03:22.4]} 28. Rd3 {[%clk 0:02:48.2]} 28... Qfxd3+ {[%clk
0:03:19.6]} 29. Kc1 {[%clk 0:02:35.1]} 29... Qcxc3# {[%clk 0:03:16.9]} 0-1

[Event "Live Chess"]
[Site "Chess.com"]
[Date "2023.05.21"]
[Round "-"]
[White "chrisbradgate"]
[Black "Mikhail_Golubev"]
[Result "0-1"]
[WhiteElo "865"]
[BlackElo "2448"]
[TimeControl "300"]
[EndTime "4:50:01 PDT"]
[Termination "Mikhail_Golubev won by checkmate"]

1. d4 {[%clk 0:04:54.7]} 1... Na6 {[%clk 0:04:59.2]} 2. Bf4 {[%clk 0:04:51.4]}
2... c6 {[%clk 0:04:58.1]} 3. e3 {[%clk 0:04:50.5]} 3... g5 {[%clk 0:04:55.3]}
4. Bg3 {[%clk 0:04:47.9]} 4... h5 {[%clk 0:04:53.9]} 5. h4 {[%clk 0:04:45.5]}
5... g4 {[%clk 0:04:52.6]} 6. Bh2 {[%clk 0:04:44]} 6... e6 {[%clk 0:04:49.3]} 7.
f3 {[%clk 0:04:41.4]} 7... Qxh4+ {[%clk 0:04:46.4]} 8. g3 {[%clk 0:04:38.2]}
8... Qg5 {[%clk 0:04:45.2]} 9. f4 {[%clk 0:04:35.9]} 9... Qd5 {[%clk 0:04:42.8]}
10. c4 {[%clk 0:04:31.9]} 10... Qxh1 {[%clk 0:04:39.8]} 11. Qe2 {[%clk
0:04:13.6]} 11... h4 {[%clk 0:04:31.7]} 12. Qg2 {[%clk 0:04:03.7]} 12... Qxg2
{[%clk 0:04:18.9]} 13. Bxg2 {[%clk 0:04:02.3]} 13... h3 {[%clk 0:04:16.8]} 14.
Be4 {[%clk 0:03:57.1]} 14... Nf6 {[%clk 0:04:14.6]} 15. Nc3 {[%clk 0:03:55.3]}
15... d5 {[%clk 0:04:03.4]} 16. Bd3 {[%clk 0:03:47.2]} 16... Nb4 {[%clk
0:04:01.7]} 17. Kd2 {[%clk 0:03:36.4]} 17... Nxd3 {[%clk 0:03:57.9]} 18. Kxd3
{[%clk 0:03:35.4]} 18... b6 {[%clk 0:03:55.9]} 19. b3 {[%clk 0:03:31.2]} 19...
Ba6 {[%clk 0:03:54.8]} 20. Re1 {[%clk 0:03:24.9]} 20... O-O-O {[%clk 0:03:53.1]}
21. Rb1 {[%clk 0:03:07.7]} 21... Bb4 {[%clk 0:03:49.7]} 22. Nge2 {[%clk
0:03:01.6]} 22... dxc4+ {[%clk 0:03:43.5]} 23. bxc4 {[%clk 0:02:57]} 23... Bxc3
{[%clk 0:03:36]} 24. Kxc3 {[%clk 0:02:52.6]} 24... Ne4+ {[%clk 0:03:33.4]} 25.
Kd3 {[%clk 0:02:45.6]} 25... Bxc4+ {[%clk 0:03:32]} 26. Kxe4 {[%clk 0:02:27.1]}
26... Rd5 {[%clk 0:02:49.6]} 27. Nc3 {[%clk 0:02:13.5]} 27... f5# {[%clk
0:02:47.3]} 0-1

[Event "Live Chess"]
[Site "Chess.com"]
[Date "2023.05.21"]
[Round "-"]
[White "Chesscoach_Golichenko"]
[Black "GwaryTek"]
[Result "1-0"]
[WhiteElo "2612"]
[BlackElo "2064"]
[TimeControl "300"]
[EndTime "4:50:05 PDT"]
[Termination "Chesscoach_Golichenko won on time"]

1. d4 {[%clk 0:04:57]} 1... Nf6 {[%clk 0:04:59.9]} 2. c4 {[%clk 0:04:55]} 2...
d6 {[%clk 0:04:59.2]} 3. Nc3 {[%clk 0:04:53.6]} 3... Nbd7 {[%clk 0:04:58.8]} 4.
e4 {[%clk 0:04:52.5]} 4... e5 {[%clk 0:04:58.1]} 5. d5 {[%clk 0:04:51.8]} 5...
Nc5 {[%clk 0:04:56.7]} 6. Be3 {[%clk 0:04:50.5]} 6... b6 {[%clk 0:04:55.2]} 7.
f3 {[%clk 0:04:42.7]} 7... Be7 {[%clk 0:04:53.5]} 8. b4 {[%clk 0:04:41.3]} 8...
Ncd7 {[%clk 0:04:43.8]} 9. Bd3 {[%clk 0:04:38.2]} 9... Nh5 {[%clk 0:04:42.6]}
10. Nge2 {[%clk 0:04:36.5]} 10... Bg5 {[%clk 0:04:40.8]} 11. Qd2 {[%clk
0:04:34.3]} 11... h6 {[%clk 0:04:37.1]} 12. O-O {[%clk 0:04:31.5]} 12... Bxe3+
{[%clk 0:04:26.5]} 13. Qxe3 {[%clk 0:04:30.3]} 13... a6 {[%clk 0:04:14.8]} 14.
a4 {[%clk 0:04:23.4]} 14... Qg5 {[%clk 0:04:11.3]} 15. Kf2 {[%clk 0:04:17.3]}
15... Qxe3+ {[%clk 0:04:07]} 16. Kxe3 {[%clk 0:04:17.2]} 16... Ke7 {[%clk
0:04:06]} 17. a5 {[%clk 0:04:05.7]} 17... g6 {[%clk 0:03:58.9]} 18. g3 {[%clk
0:04:00.7]} 18... Rf8 {[%clk 0:03:34.9]} 19. axb6 {[%clk 0:03:58.5]} 19... cxb6
{[%clk 0:03:28.5]} 20. Ra3 {[%clk 0:03:56.8]} 20... f5 {[%clk 0:03:21.6]} 21.
Rfa1 {[%clk 0:03:52.8]} 21... f4+ {[%clk 0:03:12.2]} 22. Kf2 {[%clk 0:03:38.3]}
22... fxg3+ {[%clk 0:03:09.8]} 23. hxg3 {[%clk 0:03:36.8]} 23... Bb7 {[%clk
0:02:46.3]} 24. Ke3 {[%clk 0:03:25.2]} 24... Rf7 {[%clk 0:02:40.1]} 25. Na4
{[%clk 0:02:27.1]} 25... Raf8 {[%clk 0:02:21.3]} 26. Rf1 {[%clk 0:02:22.2]}
26... Nhf6 {[%clk 0:01:55.4]} 27. Rh1 {[%clk 0:02:07.7]} 27... h5 {[%clk
0:01:27.1]} 28. Rc3 {[%clk 0:01:57]} 28... Nh7 {[%clk 0:01:17.1]} 29. f4 {[%clk
0:01:53.7]} 29... exf4+ {[%clk 0:01:07.6]} 30. gxf4 {[%clk 0:01:51.8]} 30... g5
{[%clk 0:00:50]} 31. f5 {[%clk 0:01:42.3]} 31... Nhf6 {[%clk 0:00:42]} 32. c5
{[%clk 0:01:39.6]} 32... dxc5 {[%clk 0:00:19.9]} 33. bxc5 {[%clk 0:01:37.6]}
33... bxc5 {[%clk 0:00:19.2]} 34. Nxc5 {[%clk 0:01:33.1]} 34... Nxc5 {[%clk
0:00:18.3]} 35. Rxc5 {[%clk 0:01:31.9]} 35... Kd6 {[%clk 0:00:16.6]} 36. Kd4
{[%clk 0:01:28.2]} 36... Nd7 {[%clk 0:00:15.5]} 37. Rhc1 {[%clk 0:01:23.8]}
37... Nxc5 {[%clk 0:00:13.3]} 38. e5+ {[%clk 0:01:21.4]} 38... Ke7 {[%clk
0:00:06.7]} 39. f6+ {[%clk 0:01:18.4]} 1-0

[Event "Live Chess"]
[Site "Chess.com"]
[Date "2023.05.21"]
[Round "-"]
[White "Conradical12"]
[Black "Shepherds_Pie"]
[Result "0-1"]
[WhiteElo "1571"]
[BlackElo "1952"]
[TimeControl "300"]
[EndTime "4:50:06 PDT"]
[Termination "Shepherds_Pie won on time"]

1. e4 {[%clk 0:04:58.9]} 1... e6 {[%clk 0:04:58.2]} 2. d4 {[%clk 0:04:53.8]}
2... d5 {[%clk 0:04:57]} 3. exd5 {[%clk 0:04:52.6]} 3... exd5 {[%clk 0:04:55.3]}
4. Nf3 {[%clk 0:04:51.3]} 4... Nc6 {[%clk 0:04:54.3]} 5. Bb5 {[%clk 0:04:49.9]}
5... Bd6 {[%clk 0:04:51.7]} 6. O-O {[%clk 0:04:48.9]} 6... Ne7 {[%clk
0:04:50.8]} 7. Nc3 {[%clk 0:04:46.7]} 7... O-O {[%clk 0:04:49]} 8. Bd3 {[%clk
0:04:45.1]} 8... Bf5 {[%clk 0:04:45.2]} 9. Re1 {[%clk 0:04:41]} 9... Qd7 {[%clk
0:04:43.2]} 10. Nb5 {[%clk 0:04:38.5]} 10... Bxd3 {[%clk 0:04:39.5]} 11. Qxd3
{[%clk 0:04:36.9]} 11... a6 {[%clk 0:04:37.9]} 12. Nxd6 {[%clk 0:04:35.4]} 12...
Qxd6 {[%clk 0:04:37]} 13. g3 {[%clk 0:04:31.9]} 13... Ng6 {[%clk 0:04:35.5]} 14.
Bg5 {[%clk 0:04:16.7]} 14... h6 {[%clk 0:04:31.6]} 15. Be3 {[%clk 0:04:12.8]}
15... Rfe8 {[%clk 0:04:28.4]} 16. Qb3 {[%clk 0:04:08.4]} 16... b6 {[%clk
0:04:24.6]} 17. c3 {[%clk 0:03:51.1]} 17... Re6 {[%clk 0:04:22.8]} 18. a4 {[%clk
0:03:48.6]} 18... Rae8 {[%clk 0:04:19.4]} 19. Rad1 {[%clk 0:03:32.7]} 19... Na5
{[%clk 0:04:17.2]} 20. Qc2 {[%clk 0:03:27.2]} 20... Nc4 {[%clk 0:04:15]} 21. b3
{[%clk 0:03:22.5]} 21... Nxe3 {[%clk 0:04:13]} 22. fxe3 {[%clk 0:03:20.9]} 22...
Rxe3 {[%clk 0:04:12.1]} 23. Rxe3 {[%clk 0:03:19.8]} 23... Rxe3 {[%clk
0:04:10.9]} 24. Qf2 {[%clk 0:03:19.3]} 24... Rxc3 {[%clk 0:04:02.1]} 25. Rf1
{[%clk 0:03:17.5]} 25... f6 {[%clk 0:03:57]} 26. Qe2 {[%clk 0:03:06.9]} 26...
Qe7 {[%clk 0:03:36.6]} 27. Qd2 {[%clk 0:02:59.9]} 27... Re3 {[%clk 0:03:30.3]}
28. Qc2 {[%clk 0:02:52.4]} 28... Nf8 {[%clk 0:03:26.5]} 29. Nh4 {[%clk
0:02:46.1]} 29... Re2 {[%clk 0:03:17.3]} 30. Qc6 {[%clk 0:02:32]} 30... Qe4
{[%clk 0:03:13.2]} 31. Qxc7 {[%clk 0:02:16.2]} 31... g5 {[%clk 0:03:02.9]} 32.
Nf3 {[%clk 0:01:57.7]} 32... Qe3+ {[%clk 0:02:54.6]} 33. Kh1 {[%clk 0:01:54]}
33... Rf2 {[%clk 0:02:53.5]} 34. Rxf2 {[%clk 0:01:47.1]} 34... Qxf2 {[%clk
0:02:52.5]} 35. Ng1 {[%clk 0:01:46.1]} 35... Qe3 {[%clk 0:02:40.6]} 36. Kg2
{[%clk 0:01:42.3]} 36... Ng6 {[%clk 0:02:34.3]} 37. Qd8+ {[%clk 0:01:39.2]}
37... Kg7 {[%clk 0:02:30.2]} 38. Qxb6 {[%clk 0:01:38.1]} 38... Qe4+ {[%clk
0:02:28.1]} 39. Kf1 {[%clk 0:01:32.8]} 39... Ne7 {[%clk 0:02:23.6]} 40. Qxa6
{[%clk 0:01:12.8]} 40... Nf5 {[%clk 0:02:19.4]} 41. Qe2 {[%clk 0:00:59.2]} 41...
Ne3+ {[%clk 0:02:16]} 42. Kf2 {[%clk 0:00:51.2]} 42... Ng4+ {[%clk 0:02:14]} 43.
Ke1 {[%clk 0:00:48.2]} 43... Qb1+ {[%clk 0:02:09.7]} 44. Kd2 {[%clk 0:00:44.6]}
44... Qb2+ {[%clk 0:02:07]} 45. Kd3 {[%clk 0:00:41.8]} 45... Qxb3+ {[%clk
0:02:04.8]} 46. Kd2 {[%clk 0:00:40.9]} 46... Qa2+ {[%clk 0:01:51.8]} 47. Kc3
{[%clk 0:00:35.9]} 47... Qa3+ {[%clk 0:01:48.8]} 48. Kc2 {[%clk 0:00:33.4]}
48... Qxa4+ {[%clk 0:01:46.9]} 49. Kb2 {[%clk 0:00:30.4]} 49... Qb4+ {[%clk
0:01:45.1]} 50. Ka2 {[%clk 0:00:29]} 50... h5 {[%clk 0:01:37.1]} 51. Nf3 {[%clk
0:00:19.5]} 51... Nh6 {[%clk 0:01:35]} 52. h3 {[%clk 0:00:18]} 52... Nf7 {[%clk
0:01:30]} 53. h4 {[%clk 0:00:16.9]} 53... g4 {[%clk 0:01:27.6]} 54. Nd2 {[%clk
0:00:15]} 54... Qxd4 {[%clk 0:01:26.2]} 55. Qe7 {[%clk 0:00:13.9]} 55... Qe5
{[%clk 0:01:22.8]} 56. Qd7 {[%clk 0:00:11.1]} 56... d4 {[%clk 0:01:18.6]} 57.
Nb3 {[%clk 0:00:10.7]} 57... Qe2+ {[%clk 0:01:11.3]} 58. Ka3 {[%clk 0:00:09.1]}
58... d3 {[%clk 0:01:08.4]} 59. Nd4 {[%clk 0:00:08.7]} 59... Qe5 {[%clk
0:01:03]} 60. Nf5+ {[%clk 0:00:07.6]} 60... Kg6 {[%clk 0:00:59.2]} 61. Ne7+
{[%clk 0:00:06.3]} 61... Kh7 {[%clk 0:00:53.7]} 62. Nf5 {[%clk 0:00:05.9]} 62...
Qa5+ {[%clk 0:00:51.5]} 63. Kb3 {[%clk 0:00:04.2]} 63... Qb6+ {[%clk 0:00:49]}
64. Kc3 {[%clk 0:00:03.4]} 64... Qc5+ {[%clk 0:00:46.9]} 65. Kxd3 {[%clk
0:00:02.8]} 65... Kg6 {[%clk 0:00:31.3]} 66. Ne7+ {[%clk 0:00:01.2]} 66... Qxe7
{[%clk 0:00:27.7]} 67. Qxe7 {[%clk 0:00:00.3]} 67... Kg7 {[%clk 0:00:25.9]} 0-1

[Event "Live Chess"]
[Site "Chess.com"]
[Date "2023.05.21"]
[Round "-"]
[White "chessfiction"]
[Black "DoYouLikeCurry"]
[Result "1-0"]
[WhiteElo "2308"]
[BlackElo "1432"]
[TimeControl "300"]
[EndTime "4:50:19 PDT"]
[Termination "chessfiction won by resignation"]

1. e4 {[%clk 0:04:58.2]} 1... c6 {[%clk 0:04:59]} 2. d4 {[%clk 0:04:58.1]} 2...
d5 {[%clk 0:04:58.3]} 3. Nc3 {[%clk 0:04:57.5]} 3... dxe4 {[%clk 0:04:57.3]} 4.
f3 {[%clk 0:04:57.3]} 4... exf3 {[%clk 0:04:53.9]} 5. Nxf3 {[%clk 0:04:57.2]}
5... Nf6 {[%clk 0:04:52.5]} 6. Bc4 {[%clk 0:04:56.7]} 6... g6 {[%clk 0:04:51.6]}
7. Ne5 {[%clk 0:04:56]} 7... Bg7 {[%clk 0:04:48.2]} 8. O-O {[%clk 0:04:55.4]}
8... O-O {[%clk 0:04:47]} 9. Kh1 {[%clk 0:04:53.3]} 9... Nbd7 {[%clk 0:04:40.9]}
10. Bg5 {[%clk 0:04:36.1]} 10... Nxe5 {[%clk 0:04:37.7]} 11. dxe5 {[%clk
0:04:36]} 11... Nd7 {[%clk 0:04:28.1]} 12. e6 {[%clk 0:04:34.4]} 12... fxe6
{[%clk 0:04:24.3]} 13. Bxe6+ {[%clk 0:04:34.3]} 13... Kh8 {[%clk 0:04:19.7]} 14.
Rxf8+ {[%clk 0:04:25.9]} 14... Bxf8 {[%clk 0:04:18.6]} 15. Qd3 {[%clk
0:03:59.5]} 15... Bg7 {[%clk 0:04:01.3]} 16. Rd1 {[%clk 0:03:56.9]} 16... c5
{[%clk 0:03:36.7]} 17. Bxd7 {[%clk 0:03:55.5]} 17... Bxd7 {[%clk 0:03:36.1]} 18.
Qxd7 {[%clk 0:03:54.5]} 18... Bd4 {[%clk 0:03:34.9]} 19. Qxd8+ {[%clk
0:03:51.5]} 19... Rxd8 {[%clk 0:03:33.7]} 20. Bxe7 {[%clk 0:03:50.7]} 20... Re8
{[%clk 0:03:27]} 21. Bh4 {[%clk 0:03:45]} 21... a6 {[%clk 0:03:11.9]} 22. Nd5
{[%clk 0:03:40.1]} 22... b5 {[%clk 0:03:05.6]} 23. c3 {[%clk 0:03:38]} 23... Bg7
{[%clk 0:03:00.7]} 24. Bf6 {[%clk 0:03:36.3]} 24... Bxf6 {[%clk 0:02:57.7]} 25.
Nxf6 {[%clk 0:03:36.2]} 25... Rf8 {[%clk 0:02:56.5]} 26. Ne4 {[%clk 0:03:34.3]}
26... Kg7 {[%clk 0:02:53.4]} 27. Kg1 {[%clk 0:03:31.5]} 27... Kh6 {[%clk
0:02:51.3]} 28. Nxc5 {[%clk 0:03:29.9]} 1-0

[Event "Live Chess"]
[Site "Chess.com"]
[Date "2023.05.21"]
[Round "-"]
[White "AbilifyXL"]
[Black "ossie57"]
[Result "1-0"]
[WhiteElo "1961"]
[BlackElo "1900"]
[TimeControl "300"]
[EndTime "4:50:23 PDT"]
[Termination "AbilifyXL won by resignation"]

1. d4 {[%clk 0:04:59.3]} 1... Nf6 {[%clk 0:04:58.2]} 2. c4 {[%clk 0:04:54.8]}
2... g6 {[%clk 0:04:57.3]} 3. Nc3 {[%clk 0:04:54.1]} 3... Bg7 {[%clk 0:04:56.9]}
4. e4 {[%clk 0:04:53.5]} 4... d6 {[%clk 0:04:56.4]} 5. Be2 {[%clk 0:04:52.8]}
5... O-O {[%clk 0:04:55]} 6. Bg5 {[%clk 0:04:52.2]} 6... e5 {[%clk 0:04:50.6]}
7. dxe5 {[%clk 0:04:51.3]} 7... dxe5 {[%clk 0:04:49.5]} 8. Qxd8 {[%clk
0:04:51.2]} 8... Rxd8 {[%clk 0:04:48.9]} 9. Bxf6 {[%clk 0:04:51.1]} 9... Bxf6
{[%clk 0:04:47.8]} 10. Nd5 {[%clk 0:04:51]} 10... Rxd5 {[%clk 0:04:42.1]} 11.
cxd5 {[%clk 0:04:50.2]} 11... c6 {[%clk 0:04:40.9]} 12. Bc4 {[%clk 0:04:33.7]}
12... cxd5 {[%clk 0:04:36.7]} 13. Bxd5 {[%clk 0:04:32.7]} 13... Nc6 {[%clk
0:04:36.3]} 14. Nf3 {[%clk 0:04:31]} 14... Nb4 {[%clk 0:04:32.5]} 15. O-O {[%clk
0:04:29.3]} 15... Nxd5 {[%clk 0:04:30.9]} 16. exd5 {[%clk 0:04:28.6]} 16... e4
{[%clk 0:04:30.2]} 17. Nd2 {[%clk 0:04:26.3]} 17... Bxb2 {[%clk 0:04:26.9]} 18.
Rab1 {[%clk 0:04:24.9]} 18... e3 {[%clk 0:04:23.8]} 19. Rxb2 {[%clk 0:04:16.7]}
19... exd2 {[%clk 0:04:22.9]} 20. Rxd2 {[%clk 0:04:15.8]} 20... Bd7 {[%clk
0:04:20.6]} 21. Re1 {[%clk 0:04:13.4]} 1-0

[Event "Live Chess"]
[Site "Chess.com"]
[Date "2023.05.21"]
[Round "-"]
[White "Dhaydon19"]
[Black "Ferrarifan27"]
[Result "1-0"]
[WhiteElo "2701"]
[BlackElo "2078"]
[TimeControl "300"]
[EndTime "4:50:27 PDT"]
[Termination "Dhaydon19 won by resignation"]

1. d4 {[%clk 0:04:58.1]} 1... Nf6 {[%clk 0:04:56.1]} 2. Nf3 {[%clk 0:04:57.5]}
2... e6 {[%clk 0:04:50.2]} 3. g3 {[%clk 0:04:56.3]} 3... d5 {[%clk 0:04:48]} 4.
Bg2 {[%clk 0:04:55.8]} 4... Be7 {[%clk 0:04:46.7]} 5. O-O {[%clk 0:04:55.5]}
5... O-O {[%clk 0:04:44.7]} 6. c3 {[%clk 0:04:54.6]} 6... c6 {[%clk 0:04:41.6]}
7. Qc2 {[%clk 0:04:53.8]} 7... Nbd7 {[%clk 0:04:40.5]} 8. Nbd2 {[%clk
0:04:53.4]} 8... Re8 {[%clk 0:04:39]} 9. e4 {[%clk 0:04:53]} 9... dxe4 {[%clk
0:04:37.7]} 10. Nxe4 {[%clk 0:04:52.6]} 10... Nxe4 {[%clk 0:04:36.9]} 11. Qxe4
{[%clk 0:04:52.2]} 11... Nf6 {[%clk 0:04:36.1]} 12. Qe2 {[%clk 0:04:51.1]} 12...
Bd7 {[%clk 0:04:30.7]} 13. Rd1 {[%clk 0:04:50.5]} 13... Rc8 {[%clk 0:04:27.7]}
14. Ne5 {[%clk 0:04:49.7]} 14... Qb6 {[%clk 0:04:25.4]} 15. Be3 {[%clk
0:04:48.2]} 15... Nd5 {[%clk 0:04:21.8]} 16. Nxd7 {[%clk 0:04:44.9]} 1-0

[Event "Live Chess"]
[Site "Chess.com"]
[Date "2023.05.21"]
[Round "-"]
[White "manthanit"]
[Black "seasidecastle27"]
[Result "1-0"]
[WhiteElo "1094"]
[BlackElo "1843"]
[TimeControl "300"]
[EndTime "4:50:37 PDT"]
[Termination "manthanit won by resignation"]

1. e3 {[%clk 0:04:51.2]} 1... d5 {[%clk 0:04:57.9]} 2. g3 {[%clk 0:04:50.5]}
2... e6 {[%clk 0:04:56.7]} 3. Bg2 {[%clk 0:04:50.1]} 3... c5 {[%clk 0:04:55.7]}
4. Ne2 {[%clk 0:04:46.2]} 4... Nc6 {[%clk 0:04:54.7]} 5. d4 {[%clk 0:04:44.7]}
5... Nf6 {[%clk 0:04:52.8]} 6. O-O {[%clk 0:04:43.3]} 6... Bd6 {[%clk
0:04:50.9]} 7. Nd2 {[%clk 0:04:35.6]} 7... O-O {[%clk 0:04:48.8]} 8. c4 {[%clk
0:04:34.6]} 8... b6 {[%clk 0:04:40.4]} 9. b3 {[%clk 0:04:33.6]} 9... Bb7 {[%clk
0:04:38.7]} 10. Bb2 {[%clk 0:04:32.3]} 10... Rc8 {[%clk 0:04:36.6]} 11. Rc1
{[%clk 0:04:28.9]} 11... cxd4 {[%clk 0:04:34.9]} 12. Nxd4 {[%clk 0:04:24.1]}
12... Nxd4 {[%clk 0:04:30.3]} 13. Bxd4 {[%clk 0:04:18.1]} 13... Qd7 {[%clk
0:04:16.1]} 14. cxd5 {[%clk 0:04:14]} 14... Nxd5 {[%clk 0:04:10.3]} 15. Qg4
{[%clk 0:04:00.7]} 15... g6 {[%clk 0:03:54.5]} 16. Qh4 {[%clk 0:03:53.6]} 16...
e5 {[%clk 0:03:41.2]} 17. Bb2 {[%clk 0:03:48.4]} 17... Nb4 {[%clk 0:03:29.3]}
18. Bxb7 {[%clk 0:03:39.4]} 18... Qxb7 {[%clk 0:03:27.2]} 19. Bxe5 {[%clk
0:03:33.1]} 19... Bxe5 {[%clk 0:03:05.6]} 20. Qxb4 {[%clk 0:03:31.4]} 20... Bb2
{[%clk 0:02:53.2]} 21. Rxc8 {[%clk 0:03:25.1]} 21... Rxc8 {[%clk 0:02:51.2]} 22.
Ne4 {[%clk 0:03:12.9]} 22... a5 {[%clk 0:02:44]} 23. Nd6 {[%clk 0:02:58]} 23...
Qc6 {[%clk 0:02:22]} 24. Qf4 {[%clk 0:02:54.1]} 24... Rc7 {[%clk 0:02:08.9]} 25.
Nc4 {[%clk 0:02:46.6]} 25... Rd7 {[%clk 0:01:56.4]} 26. Nxb2 {[%clk 0:02:28.1]}
1-0

[Event "Live Chess"]
[Site "Chess.com"]
[Date "2023.05.21"]
[Round "-"]
[White "bedsdrout"]
[Black "Tushinskiy"]
[Result "0-1"]
[WhiteElo "566"]
[BlackElo "2212"]
[TimeControl "300"]
[EndTime "4:50:43 PDT"]
[Termination "Tushinskiy won by checkmate"]

1. e4 {[%clk 0:04:51.3]} 1... e6 {[%clk 0:04:59.2]} 2. Qh5 {[%clk 0:04:35.1]}
2... d5 {[%clk 0:04:59.1]} 3. Nf3 {[%clk 0:04:28.5]} 3... Nf6 {[%clk 0:04:54.7]}
4. Qh3 {[%clk 0:04:22.8]} 4... dxe4 {[%clk 0:04:52]} 5. Nd4 {[%clk 0:04:18.4]}
5... Qxd4 {[%clk 0:04:46.7]} 6. c3 {[%clk 0:03:48]} 6... Qd8 {[%clk 0:04:43]} 7.
Bb5+ {[%clk 0:03:35.2]} 7... c6 {[%clk 0:04:41.5]} 8. Ba4 {[%clk 0:03:31.4]}
8... Nbd7 {[%clk 0:04:39.9]} 9. O-O {[%clk 0:03:20.5]} 9... Bd6 {[%clk
0:04:38.1]} 10. d3 {[%clk 0:03:14.7]} 10... Nc5 {[%clk 0:04:30.7]} 11. Bd1
{[%clk 0:02:59.7]} 11... Nxd3 {[%clk 0:04:25.7]} 12. Bc2 {[%clk 0:02:52.7]}
12... e5 {[%clk 0:04:23.4]} 13. Qh4 {[%clk 0:02:34.6]} 13... Bf5 {[%clk
0:04:15.9]} 14. Bg5 {[%clk 0:02:16.3]} 14... Qe7 {[%clk 0:04:01.5]} 15. c4
{[%clk 0:02:02.4]} 15... O-O-O {[%clk 0:03:55.7]} 16. Bb3 {[%clk 0:01:54.7]}
16... h6 {[%clk 0:03:53]} 17. Be3 {[%clk 0:01:44]} 17... g5 {[%clk 0:03:43.8]}
18. Qg3 {[%clk 0:01:40]} 18... Nh5 {[%clk 0:03:40.5]} 19. Bxg5 {[%clk
0:01:22.2]} 19... hxg5 {[%clk 0:03:37.6]} 20. Qe3 {[%clk 0:01:16.6]} 20... Bc5
{[%clk 0:03:34.8]} 21. Qd2 {[%clk 0:00:52]} 21... Nhf4 {[%clk 0:03:32.3]} 22.
Qa5 {[%clk 0:00:45.9]} 22... Bb6 {[%clk 0:03:25]} 23. Qa3 {[%clk 0:00:29.6]}
23... Qf6 {[%clk 0:03:21]} 24. c5 {[%clk 0:00:22.5]} 24... Bxc5 {[%clk
0:03:14.1]} 25. Be6+ {[%clk 0:00:15.5]} 25... fxe6 {[%clk 0:03:05.9]} 26. Nc3
{[%clk 0:00:14.1]} 26... Bxa3 {[%clk 0:03:04.3]} 27. Na4 {[%clk 0:00:10.2]}
27... Ne2+ {[%clk 0:03:03]} 28. Kh1 {[%clk 0:00:06.8]} 28... Rxh2+ {[%clk
0:03:02.9]} 29. Kxh2 {[%clk 0:00:05.3]} 29... Rh8# {[%clk 0:03:02.8]} 0-1